[Event "January 9 Early 2024"]
[Site "https://www.chess.com"]
[Date "2024.01.11"]
[Round "11"]
[White "Kukhmazov, Arsen"]
[Black "Kobalia, Mikhail"]
[Result "1/2-1/2"]
[Board "190"]
[TimeControl "180+1"]
[WhiteFideId "24108260"]
[BlackFideId "4119150"]
[WhiteElo "2911"]
[BlackElo "2824"]
[WhiteTeam "FID"]
[BlackTeam "FID"]
[WhiteClock "0:00:05"]
[BlackClock "0:00:03"]

1. d4 {[%clk 0:03:00]}  d5 {[%clk 0:02:59]} 2. c4 {[%clk 0:03:01]}  c6 {[%clk 0:02:59]} 3. Nf3 {[%clk 0:03:02]}  Nf6 {[%clk 0:02:58]} 4. Qc2 {[%clk 0:03:02]}  g6 {[%clk 0:02:56]} 5. cxd5 {[%clk 0:02:49]}  cxd5 {[%clk 0:02:55]} 6. Nc3 {[%clk 0:02:50]}  Nc6 {[%clk 0:02:55]} 7. Bf4 {[%clk 0:02:46]}  Bf5 {[%clk 0:02:55]} 8. Qb3 {[%clk 0:02:46]}  Na5 {[%clk 0:02:51]} 9. Qa4+ {[%clk 0:02:41]}  Bd7 {[%clk 0:02:51]} 10. Qd1 {[%clk 0:02:38]}  Rc8 {[%clk 0:02:48]} 11. e3 {[%clk 0:02:38]}  Bg7 {[%clk 0:02:47]} 12. Bd3 {[%clk 0:02:36]}  O-O {[%clk 0:02:46]} 13. O-O {[%clk 0:02:36]}  Nc4 {[%clk 0:02:46]} 14. Qe2 {[%clk 0:02:36]}  Bg4 {[%clk 0:02:44]} 15. Rfc1 {[%clk 0:02:20]}  Bxf3 {[%clk 0:02:26]} 16. gxf3 {[%clk 0:02:21]}  e6 {[%clk 0:02:25]} 17. b3 {[%clk 0:02:11]}  Nd6 {[%clk 0:02:23]} 18. Na4 {[%clk 0:02:07]}  Rxc1+ {[%clk 0:02:17]} 19. Rxc1 {[%clk 0:02:08]}  Nh5 {[%clk 0:02:17]} 20. Bg3 {[%clk 0:02:06]}  Nxg3 {[%clk 0:02:06]} 21. hxg3 {[%clk 0:02:07]}  Nf5 {[%clk 0:02:04]} 22. Bxf5 {[%clk 0:01:51]}  gxf5 {[%clk 0:02:03]} 23. Nc5 {[%clk 0:01:52]}  Qe7 {[%clk 0:01:32]} 24. Nd3 {[%clk 0:01:52]}  Re8 {[%clk 0:01:30]} 25. Rc5 {[%clk 0:01:42]}  h5 {[%clk 0:01:06]} 26. Kg2 {[%clk 0:01:24]}  h4 {[%clk 0:01:06]} 27. f4 {[%clk 0:01:21]}  Qf6 {[%clk 0:00:56]} 28. Qh5 {[%clk 0:01:20]}  hxg3 {[%clk 0:00:55]} 29. fxg3 {[%clk 0:01:20]}  Qe7 {[%clk 0:00:47]} 30. Qe2 {[%clk 0:01:09]}  Bf8 {[%clk 0:00:44]} 31. Ne5 {[%clk 0:01:02]}  Qd8 {[%clk 0:00:41]} 32. Rc2 {[%clk 0:01:02]}  Bd6 {[%clk 0:00:41]} 33. Nd3 {[%clk 0:00:51]}  Qf6 {[%clk 0:00:39]} 34. Qh5 {[%clk 0:00:52]}  Kg7 {[%clk 0:00:38]} 35. Qh4 {[%clk 0:00:19]}  Qg6 {[%clk 0:00:33]} 36. Ne5 {[%clk 0:00:12]}  Bxe5 {[%clk 0:00:34]} 37. dxe5 {[%clk 0:00:07]}  Rh8 {[%clk 0:00:34]} 38. Qf6+ {[%clk 0:00:07]}  Qxf6 {[%clk 0:00:34]} 39. exf6+ {[%clk 0:00:08]}  Kxf6 {[%clk 0:00:34]} 40. Rc7 {[%clk 0:00:09]}  Rb8 {[%clk 0:00:34]} 41. Kf3 {[%clk 0:00:10]}  a5 {[%clk 0:00:32]} 42. Ke2 {[%clk 0:00:04]}  b6 {[%clk 0:00:32]} 43. a3 {[%clk 0:00:01]}  b5 {[%clk 0:00:29]} 44. Kd3 {[%clk 0:00:01]}  Kg6 {[%clk 0:00:25]} 45. Kd4 {[%clk 0:00:02]}  Kf6 {[%clk 0:00:24]} 46. Kd3 {[%clk 0:00:02]}  Rb6 {[%clk 0:00:23]} 47. Kd4 {[%clk 0:00:02]}  Rb8 {[%clk 0:00:15]} 48. Kc5 {[%clk 0:00:02]}  b4 {[%clk 0:00:13]} 49. a4 {[%clk 0:00:03]}  Rg8 {[%clk 0:00:13]} 50. Ra7 {[%clk 0:00:02]}  Rxg3 {[%clk 0:00:13]} 51. Kd4 {[%clk 0:00:03]}  Rg1 {[%clk 0:00:13]} 52. Rxa5 {[%clk 0:00:02]}  Rb1 {[%clk 0:00:13]} 53. Rb5 {[%clk 0:00:03]}  Rxb3 {[%clk 0:00:13]} 54. a5 {[%clk 0:00:03]}  Rb1 {[%clk 0:00:13]} 55. Kc5 {[%clk 0:00:02]}  b3 {[%clk 0:00:13]} 56. Kb6 {[%clk 0:00:02]}  e5 {[%clk 0:00:10]} 57. fxe5+ {[%clk 0:00:03]}  Kxe5 {[%clk 0:00:10]} 58. a6 {[%clk 0:00:04]}  f4 {[%clk 0:00:08]} 59. a7 {[%clk 0:00:03]}  Ra1 {[%clk 0:00:07]} 60. exf4+ {[%clk 0:00:03]}  Kxf4 {[%clk 0:00:07]} 61. Rxb3 {[%clk 0:00:03]}  d4 {[%clk 0:00:06]} 62. Rb5 {[%clk 0:00:03]}  Rxa7 {[%clk 0:00:04]} 63. Kxa7 {[%clk 0:00:03]}  d3 {[%clk 0:00:05]} 64. Rd5 {[%clk 0:00:03]}  Ke3 {[%clk 0:00:05]} 65. Re5+ {[%clk 0:00:03]}  Kd4 {[%clk 0:00:05]} 66. Re7 {[%clk 0:00:03]}  f5 {[%clk 0:00:05]} 67. Kb6 {[%clk 0:00:03]}  f4 {[%clk 0:00:05]} 68. Rf7 {[%clk 0:00:03]}  Ke3 {[%clk 0:00:05]} 69. Re7+ {[%clk 0:00:03]}  Kf2 {[%clk 0:00:05]} 70. Rd7 {[%clk 0:00:03]}  Ke2 {[%clk 0:00:05]} 71. Re7+ {[%clk 0:00:04]}  Kf2 {[%clk 0:00:04]} 72. Rd7 {[%clk 0:00:04]}  Ke2 {[%clk 0:00:04]} 73. Re7+ {[%clk 0:00:05]}  Kf2 {[%clk 0:00:03]} 1/2-1/2

[Event "January 9 Early 2024"]
[Site "https://www.chess.com"]
[Date "2024.01.11"]
[Round "11"]
[White "Przybylski, Wojciech"]
[Black "Kosteniuk, Alexandra"]
[Result "0-1"]
[Board "191"]
[TimeControl "180+1"]
[WhiteFideId "1117599"]
[BlackFideId "4128125"]
[WhiteElo "2554"]
[BlackElo "2749"]
[WhiteTeam "POL"]
[BlackTeam "SUI"]
[WhiteClock "0:00:03"]
[BlackClock "0:00:12"]

1. d4 {[%clk 0:02:59]}  Nf6 {[%clk 0:02:59]} 2. Nf3 {[%clk 0:02:59]}  e6 {[%clk 0:02:58]} 3. g3 {[%clk 0:02:59]}  b5 {[%clk 0:02:58]} 4. Bg2 {[%clk 0:02:59]}  Bb7 {[%clk 0:02:58]} 5. O-O {[%clk 0:02:59]}  Be7 {[%clk 0:02:59]} 6. a4 {[%clk 0:03:00]}  b4 {[%clk 0:02:57]} 7. a5 {[%clk 0:02:57]}  O-O {[%clk 0:02:55]} 8. Nbd2 {[%clk 0:02:57]}  d6 {[%clk 0:02:52]} 9. Re1 {[%clk 0:02:57]}  c5 {[%clk 0:02:50]} 10. e4 {[%clk 0:02:54]}  cxd4 {[%clk 0:02:44]} 11. Nxd4 {[%clk 0:02:53]}  Qc8 {[%clk 0:02:44]} 12. N4b3 {[%clk 0:02:43]}  Na6 {[%clk 0:02:40]} 13. h3 {[%clk 0:02:37]}  Rd8 {[%clk 0:02:39]} 14. Kh2 {[%clk 0:02:35]}  Nc5 {[%clk 0:02:36]} 15. Qe2 {[%clk 0:02:34]}  e5 {[%clk 0:02:28]} 16. Nxc5 {[%clk 0:02:16]}  dxc5 {[%clk 0:02:28]} 17. b3 {[%clk 0:02:15]}  Ba6 {[%clk 0:02:20]} 18. Nc4 {[%clk 0:02:15]}  Qe6 {[%clk 0:02:19]} 19. Bb2 {[%clk 0:02:14]}  Ne8 {[%clk 0:02:07]} 20. Rad1 {[%clk 0:02:10]}  Rd4 {[%clk 0:02:04]} 21. Bxd4 {[%clk 0:02:06]}  cxd4 {[%clk 0:02:04]} 22. Bf1 {[%clk 0:02:03]}  Nd6 {[%clk 0:01:57]} 23. Qg4 {[%clk 0:02:02]}  Qxg4 {[%clk 0:01:53]} 24. hxg4 {[%clk 0:02:01]}  Nxc4 {[%clk 0:01:52]} 25. bxc4 {[%clk 0:01:57]}  Rc8 {[%clk 0:01:51]} 26. f4 {[%clk 0:01:35]}  f6 {[%clk 0:01:51]} 27. Rd2 {[%clk 0:01:29]}  Bxc4 {[%clk 0:01:50]} 28. Bxc4+ {[%clk 0:01:28]}  Rxc4 {[%clk 0:01:51]} 29. a6 {[%clk 0:01:28]}  Rc6 {[%clk 0:01:39]} 30. Ra1 {[%clk 0:01:28]}  Kf7 {[%clk 0:01:39]} 31. Kg2 {[%clk 0:01:27]}  Ke6 {[%clk 0:01:37]} 32. Ra5 {[%clk 0:01:26]}  Bd6 {[%clk 0:01:24]} 33. f5+ {[%clk 0:01:19]}  Kd7 {[%clk 0:01:23]} 34. Kf2 {[%clk 0:01:10]}  h6 {[%clk 0:01:20]} 35. Ra2 {[%clk 0:01:05]}  Kc7 {[%clk 0:01:17]} 36. Rd3 {[%clk 0:01:04]}  Kb6 {[%clk 0:01:17]} 37. Ke2 {[%clk 0:01:04]}  Kb5 {[%clk 0:01:17]} 38. Kd1 {[%clk 0:01:03]}  Bc7 {[%clk 0:01:06]} 39. Rb3 {[%clk 0:00:58]}  Ba5 {[%clk 0:01:04]} 40. Rb1 {[%clk 0:00:53]}  Bb6 {[%clk 0:00:33]} 41. Rab2 {[%clk 0:00:42]}  Bc5 {[%clk 0:00:31]} 42. Ra2 {[%clk 0:00:41]}  Rd6 {[%clk 0:00:21]} 43. Rba1 {[%clk 0:00:39]}  d3 {[%clk 0:00:18]} 44. Ra5+ {[%clk 0:00:33]}  Kc4 {[%clk 0:00:19]} 45. cxd3+ {[%clk 0:00:31]}  Rxd3+ {[%clk 0:00:19]} 46. Ke2 {[%clk 0:00:30]}  Rc3 {[%clk 0:00:13]} 47. Kd2 {[%clk 0:00:22]}  Be3+ {[%clk 0:00:13]} 48. Ke2 {[%clk 0:00:22]}  Bd4 {[%clk 0:00:13]} 49. Rb1 {[%clk 0:00:17]}  Rxg3 {[%clk 0:00:13]} 50. Rd5 {[%clk 0:00:15]}  Rg2+ {[%clk 0:00:13]} 51. Kf3 {[%clk 0:00:11]}  Rf2+ {[%clk 0:00:13]} 52. Kg3 {[%clk 0:00:11]}  Re2 {[%clk 0:00:13]} 53. Rd7 {[%clk 0:00:10]}  Rxe4 {[%clk 0:00:12]} 54. Rxg7 {[%clk 0:00:07]}  Re3+ {[%clk 0:00:12]} 55. Kg2 {[%clk 0:00:03]}  Ra3 {[%clk 0:00:12]} 56. Rc7+ {[%clk 0:00:02]}  Kb5 {[%clk 0:00:12]} 57. Rb7+ {[%clk 0:00:02]}  Bb6 {[%clk 0:00:12]} 58. Rf7 {[%clk 0:00:03]}  Ra2+ {[%clk 0:00:11]} 59. Kf3 {[%clk 0:00:02]}  Ra3+ {[%clk 0:00:11]} 60. Ke4 {[%clk 0:00:03]}  Kc4 {[%clk 0:00:11]} 61. Rc7+ {[%clk 0:00:01]}  Bc5 {[%clk 0:00:11]} 62. Rc1+ {[%clk 0:00:02]}  Rc3 {[%clk 0:00:11]} 63. Rxc3+ {[%clk 0:00:02]}  bxc3 {[%clk 0:00:11]} 64. g5 {[%clk 0:00:02]}  hxg5 {[%clk 0:00:11]} 65. Rc8 {[%clk 0:00:02]}  c2 {[%clk 0:00:11]} 66. Rxc5+ {[%clk 0:00:02]}  Kxc5 {[%clk 0:00:11]} 67. Kd3 {[%clk 0:00:03]}  g4 {[%clk 0:00:12]} 68. Kxc2 {[%clk 0:00:03]}  g3 {[%clk 0:00:12]} 0-1

[Event "January 9 Early 2024"]
[Site "https://www.chess.com"]
[Date "2024.01.11"]
[Round "11"]
[White "Lysyj, Igor"]
[Black "Lu, Shanglei"]
[Result "1/2-1/2"]
[Board "195"]
[TimeControl "180+1"]
[WhiteFideId "4150120"]
[BlackFideId "8603332"]
[WhiteElo "2872"]
[BlackElo "3004"]
[WhiteTeam "FID"]
[BlackTeam "CHN"]
[WhiteClock "0:00:07"]
[BlackClock "0:00:09"]

1. d4 {[%clk 0:03:00]}  Nf6 {[%clk 0:02:59]} 2. c4 {[%clk 0:03:00]}  e6 {[%clk 0:03:00]} 3. Nf3 {[%clk 0:02:59]}  d5 {[%clk 0:03:01]} 4. g3 {[%clk 0:02:59]}  dxc4 {[%clk 0:03:01]} 5. Bg2 {[%clk 0:02:59]}  c5 {[%clk 0:03:02]} 6. O-O {[%clk 0:02:57]}  Nc6 {[%clk 0:03:03]} 7. dxc5 {[%clk 0:02:57]}  Qxd1 {[%clk 0:03:04]} 8. Rxd1 {[%clk 0:02:57]}  Bxc5 {[%clk 0:03:05]} 9. Nbd2 {[%clk 0:02:55]}  c3 {[%clk 0:03:05]} 10. bxc3 {[%clk 0:02:54]}  O-O {[%clk 0:03:05]} 11. Nb3 {[%clk 0:02:44]}  Be7 {[%clk 0:03:05]} 12. Nfd4 {[%clk 0:02:45]}  Nxd4 {[%clk 0:03:06]} 13. cxd4 {[%clk 0:02:45]}  Nd5 {[%clk 0:03:06]} 14. Na5 {[%clk 0:02:45]}  Bb4 {[%clk 0:02:50]} 15. Nc4 {[%clk 0:02:39]}  Bd7 {[%clk 0:02:49]} 16. Bd2 {[%clk 0:02:29]}  Nc3 {[%clk 0:01:43]} 17. Bxc3 {[%clk 0:02:27]}  Bxc3 {[%clk 0:01:43]} 18. Rac1 {[%clk 0:02:27]}  Bb4 {[%clk 0:01:26]} 19. Bxb7 {[%clk 0:02:14]}  Rab8 {[%clk 0:01:26]} 20. Bf3 {[%clk 0:02:13]}  Rfd8 {[%clk 0:01:21]} 21. Ne5 {[%clk 0:02:10]}  Ba4 {[%clk 0:01:20]} 22. Nc6 {[%clk 0:02:00]}  Bxd1 {[%clk 0:01:12]} 23. Rxd1 {[%clk 0:01:53]}  Kf8 {[%clk 0:01:09]} 24. Nxb8 {[%clk 0:01:39]}  Rxb8 {[%clk 0:01:08]} 25. Rc1 {[%clk 0:01:39]}  Bd6 {[%clk 0:01:07]} 26. e3 {[%clk 0:01:36]}  Rb2 {[%clk 0:01:04]} 27. Rc6 {[%clk 0:01:34]}  Ke7 {[%clk 0:00:58]} 28. Ra6 {[%clk 0:01:31]}  Bb8 {[%clk 0:00:58]} 29. d5 {[%clk 0:01:24]}  exd5 {[%clk 0:00:54]} 30. Bxd5 {[%clk 0:01:24]}  Rb6 {[%clk 0:00:49]} 31. Ra4 {[%clk 0:01:23]}  h6 {[%clk 0:00:48]} 32. Re4+ {[%clk 0:01:20]}  Kf8 {[%clk 0:00:48]} 33. Bb3 {[%clk 0:01:20]}  Rd6 {[%clk 0:00:42]} 34. Kg2 {[%clk 0:01:18]}  Bc7 {[%clk 0:00:42]} 35. Rc4 {[%clk 0:01:14]}  Bb6 {[%clk 0:00:41]} 36. Rc2 {[%clk 0:01:13]}  Ke7 {[%clk 0:00:41]} 37. h4 {[%clk 0:01:13]}  Ba5 {[%clk 0:00:41]} 38. Rc5 {[%clk 0:01:10]}  Bb6 {[%clk 0:00:42]} 39. Rf5 {[%clk 0:01:08]}  Rf6 {[%clk 0:00:42]} 40. Re5+ {[%clk 0:01:08]}  Kf8 {[%clk 0:00:42]} 41. g4 {[%clk 0:01:03]}  Rd6 {[%clk 0:00:41]} 42. Rf5 {[%clk 0:00:57]}  Rf6 {[%clk 0:00:41]} 43. Rd5 {[%clk 0:00:57]}  Ke7 {[%clk 0:00:40]} 44. g5 {[%clk 0:00:56]}  hxg5 {[%clk 0:00:40]} 45. hxg5 {[%clk 0:00:55]}  Rc6 {[%clk 0:00:37]} 46. Re5+ {[%clk 0:00:53]}  Kf8 {[%clk 0:00:37]} 47. Rf5 {[%clk 0:00:52]}  f6 {[%clk 0:00:37]} 48. g6 {[%clk 0:00:51]}  Rc5 {[%clk 0:00:36]} 49. Bd5 {[%clk 0:00:49]}  Ke7 {[%clk 0:00:36]} 50. Kg3 {[%clk 0:00:31]}  Bc7+ {[%clk 0:00:35]} 51. Kg4 {[%clk 0:00:28]}  Be5 {[%clk 0:00:35]} 52. Bb3 {[%clk 0:00:24]}  Bd6 {[%clk 0:00:34]} 53. Bd5 {[%clk 0:00:21]}  Be5 {[%clk 0:00:34]} 54. e4 {[%clk 0:00:21]}  Rc1 {[%clk 0:00:31]} 55. f4 {[%clk 0:00:20]}  Rg1+ {[%clk 0:00:30]} 56. Kf3 {[%clk 0:00:20]}  Rf1+ {[%clk 0:00:29]} 57. Ke3 {[%clk 0:00:20]}  Bb2 {[%clk 0:00:21]} 58. Ke2 {[%clk 0:00:18]}  Rg1 {[%clk 0:00:21]} 59. Bf7 {[%clk 0:00:17]}  Bc1 {[%clk 0:00:19]} 60. Ra5 {[%clk 0:00:16]}  Bxf4 {[%clk 0:00:19]} 61. Rxa7+ {[%clk 0:00:16]}  Kd6 {[%clk 0:00:20]} 62. Ra6+ {[%clk 0:00:16]}  Ke5 {[%clk 0:00:19]} 63. Ra4 {[%clk 0:00:13]}  Rc1 {[%clk 0:00:17]} 64. Kf3 {[%clk 0:00:13]}  Bh6 {[%clk 0:00:17]} 65. Ra5+ {[%clk 0:00:12]}  Kd6 {[%clk 0:00:16]} 66. Rd5+ {[%clk 0:00:12]}  Kc6 {[%clk 0:00:16]} 67. a4 {[%clk 0:00:12]}  Rc3+ {[%clk 0:00:16]} 68. Kf2 {[%clk 0:00:12]}  Rc5 {[%clk 0:00:13]} 69. Rd3 {[%clk 0:00:10]}  Rc2+ {[%clk 0:00:13]} 70. Kf1 {[%clk 0:00:10]}  Kb6 {[%clk 0:00:13]} 71. Rh3 {[%clk 0:00:10]}  Rc1+ {[%clk 0:00:09]} 72. Ke2 {[%clk 0:00:10]}  Rc2+ {[%clk 0:00:09]} 73. Kd1 {[%clk 0:00:10]}  Rc1+ {[%clk 0:00:09]} 74. Ke2 {[%clk 0:00:09]}  Rc2+ {[%clk 0:00:09]} 75. Kd3 {[%clk 0:00:10]}  Rd2+ {[%clk 0:00:08]} 76. Kc3 {[%clk 0:00:10]}  Bf4 {[%clk 0:00:07]} 77. Rh7 {[%clk 0:00:09]}  Rd8 {[%clk 0:00:06]} 78. Rxg7 {[%clk 0:00:10]}  f5 {[%clk 0:00:07]} 79. Rh7 {[%clk 0:00:09]}  fxe4 {[%clk 0:00:07]} 80. g7 {[%clk 0:00:09]}  Be5+ {[%clk 0:00:08]} 81. Kb3 {[%clk 0:00:09]}  Rd3+ {[%clk 0:00:05]} 82. Kc2 {[%clk 0:00:09]}  Bxg7 {[%clk 0:00:05]} 83. Rxg7 {[%clk 0:00:08]}  Rd7 {[%clk 0:00:05]} 84. Rg6+ {[%clk 0:00:08]}  Ka5 {[%clk 0:00:06]} 85. Bb3 {[%clk 0:00:08]}  Kb4 {[%clk 0:00:06]} 86. Rb6+ {[%clk 0:00:08]}  Ka3 {[%clk 0:00:07]} 87. Rb5 {[%clk 0:00:08]}  e3 {[%clk 0:00:07]} 88. Re5 {[%clk 0:00:08]}  Rc7+ {[%clk 0:00:07]} 89. Kd3 {[%clk 0:00:07]}  Kxb3 {[%clk 0:00:07]} 90. Rxe3 {[%clk 0:00:07]}  Rc3+ {[%clk 0:00:07]} 91. Kd4 {[%clk 0:00:06]}  Rxe3 {[%clk 0:00:08]} 92. Kxe3 {[%clk 0:00:07]}  Kxa4 {[%clk 0:00:09]} 1/2-1/2

[Event "January 9 Early 2024"]
[Site "https://www.chess.com"]
[Date "2024.01.11"]
[Round "11"]
[White "Shimanov, Aleksandr"]
[Black "Makarian, Rudik"]
[Result "1-0"]
[Board "197"]
[TimeControl "180+1"]
[WhiteFideId "4198603"]
[BlackFideId "44105681"]
[WhiteElo "3013"]
[BlackElo "3084"]
[WhiteTeam "RUS"]
[BlackTeam "FID"]
[WhiteClock "0:00:06"]
[BlackClock "0:00:06"]

1. c3 {[%clk 0:02:50]}  d5 {[%clk 0:02:51]} 2. Nf3 {[%clk 0:02:49]}  Nf6 {[%clk 0:02:51]} 3. d4 {[%clk 0:02:49]}  Bf5 {[%clk 0:02:49]} 4. Qb3 {[%clk 0:02:48]}  Qc8 {[%clk 0:02:48]} 5. Bf4 {[%clk 0:02:47]}  e6 {[%clk 0:02:48]} 6. c4 {[%clk 0:02:47]}  c6 {[%clk 0:02:44]} 7. e3 {[%clk 0:02:47]}  Nbd7 {[%clk 0:02:44]} 8. Nc3 {[%clk 0:02:47]}  Nb6 {[%clk 0:02:41]} 9. Nd2 {[%clk 0:02:44]}  Be7 {[%clk 0:02:38]} 10. Be2 {[%clk 0:02:44]}  O-O {[%clk 0:02:39]} 11. O-O {[%clk 0:02:44]}  h6 {[%clk 0:02:36]} 12. h3 {[%clk 0:02:43]}  Re8 {[%clk 0:02:37]} 13. Rac1 {[%clk 0:02:42]}  Bh7 {[%clk 0:02:23]} 14. Rfd1 {[%clk 0:02:41]}  dxc4 {[%clk 0:02:23]} 15. Nxc4 {[%clk 0:02:41]}  Nxc4 {[%clk 0:02:22]} 16. Bxc4 {[%clk 0:02:39]}  Ne4 {[%clk 0:02:20]} 17. Nxe4 {[%clk 0:02:19]}  Bxe4 {[%clk 0:02:20]} 18. Bf1 {[%clk 0:02:09]}  a5 {[%clk 0:02:17]} 19. a3 {[%clk 0:02:04]}  Qd7 {[%clk 0:02:16]} 20. f3 {[%clk 0:02:04]}  Bd5 {[%clk 0:02:12]} 21. Qc3 {[%clk 0:02:02]}  a4 {[%clk 0:02:12]} 22. Rd2 {[%clk 0:01:53]}  Rac8 {[%clk 0:02:07]} 23. e4 {[%clk 0:01:49]}  Bb3 {[%clk 0:02:07]} 24. Bc4 {[%clk 0:01:48]}  Bxc4 {[%clk 0:02:06]} 25. Qxc4 {[%clk 0:01:49]}  b5 {[%clk 0:02:06]} 26. Qe2 {[%clk 0:01:48]}  Red8 {[%clk 0:02:03]} 27. Rcd1 {[%clk 0:01:48]}  Qb7 {[%clk 0:01:56]} 28. Be3 {[%clk 0:01:46]}  Rd7 {[%clk 0:01:55]} 29. Rc2 {[%clk 0:01:42]}  Bf6 {[%clk 0:01:53]} 30. g4 {[%clk 0:01:39]}  Rcd8 {[%clk 0:01:51]} 31. Rcd2 {[%clk 0:01:37]}  e5 {[%clk 0:01:47]} 32. Qf2 {[%clk 0:01:27]}  exd4 {[%clk 0:01:23]} 33. Bxd4 {[%clk 0:01:28]}  Be7 {[%clk 0:01:18]} 34. Bc3 {[%clk 0:01:23]}  c5 {[%clk 0:01:16]} 35. Qe2 {[%clk 0:00:55]}  b4 {[%clk 0:01:13]} 36. Be5 {[%clk 0:00:55]}  Rxd2 {[%clk 0:01:10]} 37. Rxd2 {[%clk 0:00:56]}  Rxd2 {[%clk 0:01:08]} 38. Qxd2 {[%clk 0:00:57]}  bxa3 {[%clk 0:01:07]} 39. bxa3 {[%clk 0:00:57]}  c4 {[%clk 0:01:07]} 40. Qd4 {[%clk 0:00:54]}  Qc6 {[%clk 0:00:56]} 41. Qc3 {[%clk 0:00:54]}  f6 {[%clk 0:00:52]} 42. Bd4 {[%clk 0:00:50]}  Qb5 {[%clk 0:00:52]} 43. Kg2 {[%clk 0:00:50]}  Kh7 {[%clk 0:00:46]} 44. e5 {[%clk 0:00:49]}  Qb3 {[%clk 0:00:42]} 45. Qe1 {[%clk 0:00:46]}  Qc2+ {[%clk 0:00:35]} 46. Kg3 {[%clk 0:00:44]}  f5 {[%clk 0:00:36]} 47. e6 {[%clk 0:00:39]}  fxg4 {[%clk 0:00:21]} 48. hxg4 {[%clk 0:00:40]}  Qg6 {[%clk 0:00:16]} 49. Qe3 {[%clk 0:00:34]}  h5 {[%clk 0:00:16]} 50. Bb2 {[%clk 0:00:10]}  h4+ {[%clk 0:00:11]} 51. Kh3 {[%clk 0:00:10]}  Qb1 {[%clk 0:00:11]} 52. Qe4+ {[%clk 0:00:02]}  Qxe4 {[%clk 0:00:11]} 53. fxe4 {[%clk 0:00:03]}  g5 {[%clk 0:00:10]} 54. Kg2 {[%clk 0:00:02]}  Kg6 {[%clk 0:00:10]} 55. Kf3 {[%clk 0:00:03]}  Bf6 {[%clk 0:00:08]} 56. Bc1 {[%clk 0:00:03]}  Kg7 {[%clk 0:00:06]} 57. e5 {[%clk 0:00:03]}  Be7 {[%clk 0:00:06]} 58. Ke4 {[%clk 0:00:03]}  Kg6 {[%clk 0:00:05]} 59. Kf3 {[%clk 0:00:03]}  Bc5 {[%clk 0:00:04]} 60. Ke4 {[%clk 0:00:03]}  Be7 {[%clk 0:00:04]} 61. Kf3 {[%clk 0:00:04]}  c3 {[%clk 0:00:05]} 62. Ke4 {[%clk 0:00:04]}  c2 {[%clk 0:00:05]} 63. Kf3 {[%clk 0:00:02]}  Bc5 {[%clk 0:00:05]} 64. Ke4 {[%clk 0:00:03]}  Bf8 {[%clk 0:00:04]} 65. Kf3 {[%clk 0:00:03]}  Be7 {[%clk 0:00:04]} 66. Ke4 {[%clk 0:00:03]}  Bd8 {[%clk 0:00:03]} 67. Kf3 {[%clk 0:00:03]}  Bb6 {[%clk 0:00:03]} 68. Ke4 {[%clk 0:00:04]}  Bf2 {[%clk 0:00:03]} 69. Kd5 {[%clk 0:00:02]}  h3 {[%clk 0:00:02]} 70. Kd6 {[%clk 0:00:02]}  h2 {[%clk 0:00:03]} 71. e7 {[%clk 0:00:03]}  h1=Q {[%clk 0:00:02]} 72. e8=Q+ {[%clk 0:00:03]}  Kg7 {[%clk 0:00:03]} 73. Qe7+ {[%clk 0:00:03]}  Kh8 {[%clk 0:00:03]} 74. Qf6+ {[%clk 0:00:03]}  Kh7 {[%clk 0:00:04]} 75. Qf5+ {[%clk 0:00:03]}  Kh8 {[%clk 0:00:04]} 76. Qf8+ {[%clk 0:00:04]}  Kh7 {[%clk 0:00:04]} 77. Qf7+ {[%clk 0:00:04]}  Kh8 {[%clk 0:00:04]} 78. Qe8+ {[%clk 0:00:03]}  Kg7 {[%clk 0:00:04]} 79. Qe7+ {[%clk 0:00:03]}  Kh8 {[%clk 0:00:04]} 80. Qxg5 {[%clk 0:00:04]}  Qd1+ {[%clk 0:00:04]} 81. Ke7 {[%clk 0:00:04]}  Bc5+ {[%clk 0:00:02]} 82. Ke6 {[%clk 0:00:04]}  Qd3 {[%clk 0:00:02]} 83. Qh6+ {[%clk 0:00:04]}  Kg8 {[%clk 0:00:03]} 84. Qg5+ {[%clk 0:00:03]}  Kf8 {[%clk 0:00:03]} 85. Qf5+ {[%clk 0:00:03]}  Qxf5+ {[%clk 0:00:03]} 86. gxf5 {[%clk 0:00:04]}  Ke8 {[%clk 0:00:04]} 87. f6 {[%clk 0:00:05]}  Kf8 {[%clk 0:00:04]} 88. Kf5 {[%clk 0:00:05]}  Ke8 {[%clk 0:00:05]} 89. e6 {[%clk 0:00:06]}  Kf8 {[%clk 0:00:05]} 90. Ke5 {[%clk 0:00:05]}  Ke8 {[%clk 0:00:05]} 91. f7+ {[%clk 0:00:06]}  Kf8 {[%clk 0:00:05]} 92. Bh6+ {[%clk 0:00:06]}  Ke7 {[%clk 0:00:06]} 93. f8=Q# {[%clk 0:00:06]} 1-0